fUST/lending_fUST_20260410
["ID","MTS","AMOUNT","RATE_DAILY","PERIOD"]
[420184930,1775759441839,-500.0,0.00018629,18]
[420184931,1775759441848,-57.5594459,0.00018629,18]
[420184951,1775759443749,-107.64443219,0.00018629,18]
[420184952,1775759443762,-500.0,0.00018629,120]
[420184953,1775759443771,-500.0,0.00018629,120]
[420184954,1775759443781,-500.0,0.00018629,120]
[420184955,1775759443790,-500.0,0.00018629,120]
[420184956,1775759443800,-216.18682331,0.00018629,120]
[420184957,1775759443875,-283.81317669,0.00018629,120]
[420184958,1775759443884,-500.0,0.00018629,120]
[420184959,1775759443893,-500.0,0.00018629,120]
[420184960,1775759443903,-500.0,0.00018629,120]
[420184961,1775759443912,-500.0,0.00018629,120]
[420184962,1775759443922,-279.44874033,0.00018629,120]
[420184963,1775759443931,-2229.8692234,0.00018677,2]
[420184964,1775759443940,-2150.738,0.00018766,2]
[420184965,1775759443950,-191.96621394,0.000189,2]
[420184966,1775759443959,-1813.92055574,0.00018925,2]
[420184979,1775759446641,-2324.46230483,0.00018925,2]
[420184981,1775759446651,-191.9662139,0.00018945,2]
[420184982,1775759446660,-191.9662139,0.00018989,2]
[420184983,1775759446670,-211.47504287,0.00019,2]
[420184984,1775759446679,-1203.62,0.00019,2]
[420184985,1775759446688,-240.72,0.00019,2]
[420184986,1775759446699,-7343.0,0.00019025,5]
[420184987,1775759446708,-1244.0,0.00019025,5]
[420184988,1775759446717,-191.9662139,0.00019034,2]
[420184989,1775759446727,-204.0,0.00019069,2]
[420184990,1775759446737,-191.9662139,0.00019078,2]
[420184992,1775759446746,-500.0,0.00019173,2]
[420184993,1775759446755,-707.056416,0.00019177,18]
[420184994,1775759446765,-707.056416,0.00019177,18]
[420184995,1775759446774,-707.056416,0.00019177,18]
[420184996,1775759446784,-707.056416,0.00019177,18]
[420184997,1775759446794,-707.05641599,0.00019177,18]
[420184998,1775759446803,-237.41012073,0.00019177,2]
[420184999,1775759446812,-500.0,0.00019178,18]
[420185000,1775759446822,-500.0,0.00019178,18]
[420185001,1775759446832,-500.0,0.00019178,18]
[420185002,1775759446841,-500.0,0.00019178,18]
[420185003,1775759446851,-500.0,0.00019178,18]
[420185004,1775759446860,-902.64,0.00019178,18]
[420185005,1775759446869,-200.07957909,0.00019178,18]
[420185006,1775759446881,-589.80042091,0.00019178,18]
[420185007,1775759446891,-500.0,0.00019178,18]
[420185008,1775759446900,-505.13,0.00019178,18]
[420185009,1775759446910,-2092.31720311,0.00019178,18]
[420185010,1775759446926,-298.7736344,0.00019178,18]
[420185021,1775760634013,-156.0,0.00013699,2]
[420185022,1775760634023,-1000.0,0.00013699,2]
[420185023,1775760634033,-177.0,0.00015699,2]
[420185024,1775760634042,-300.0,0.00016438,2]
[420185025,1775760634054,-300.0,0.0001681,2]
[420185026,1775760634063,-192.8428054,0.00017048,2]
[420185027,1775760634072,-204.0,0.00017699,2]
[420185028,1775760634082,-330.0,0.00017964,2]
[420185029,1775760634091,-196.0774196,0.00018372,2]
[420185030,1775760634101,-3812.36537268,0.00018475,2]
[420185032,1775760634111,-213.08152866,0.00018476,2]
[420185034,1775760634121,-1200.0,0.00018564,2]
[420185036,1775760634130,-2150.738,0.00018565,2]
[420185038,1775760634140,-500.0,0.00018573,2]
[420185040,1775760634149,-300.0,0.00018573,2]
[420185042,1775760634158,-500.0,0.00018574,2]
[420185044,1775760634168,-157.54647677,0.00018574,2]
[420185046,1775760634178,-500.0,0.00018574,2]
[420185048,1775760634188,-500.0,0.00018574,2]
[420185050,1775760634197,-500.0,0.00018574,2]
[420185051,1775760634206,-500.0,0.00018574,2]
[420185053,1775760634215,-74212.56917133,0.00018576,2]
[420185055,1775760634227,-665.05,0.00018576,2]
[420185056,1775760634238,-7700.88460662,0.00018576,2]
[420185057,1775760634332,-500.0,0.00018574,2]
[420185058,1775760634341,-500.0,0.00018574,2]
[420185059,1775760634350,-500.0,0.00018574,2]
[420185060,1775760634361,-500.0,0.00018574,2]
[420185061,1775760634371,-500.0,0.00018574,2]
[420185062,1775760634381,-500.0,0.00018574,2]
[420185063,1775760634390,-500.0,0.00018574,2]
[420185064,1775760634399,-380.54587284,0.00018576,2]
[420185065,1775760634409,-161.74228062,0.00018787,2]
[420185066,1775760634419,-163.69,0.00019,2]
[420185067,1775760634429,-928.23,0.00019,2]
[420185068,1775760634438,-250.0,0.00019068,7]
[420185069,1775760634448,-213.08152866,0.00019078,2]
[420185070,1775760634457,-248.04586458,0.00019112,2]
[420185071,1775760634466,-500.0,0.00019112,2]
[420185072,1775760634477,-741.18429184,0.00019112,2]
[420185073,1775760634486,-500.0,0.00019112,2]
[420185074,1775760634495,-741.18429184,0.00019112,2]
[420185075,1775760634505,-100.54229271,0.00019112,2]
[420185076,1775760634518,-640.64199913,0.00019112,2]
[420185077,1775760634528,-500.0,0.00019112,2]
[420185078,1775760634537,-741.18429184,0.00019112,2]
[420185079,1775760634547,-741.18429184,0.00019112,2]
[420185080,1775760634556,-741.18429184,0.00019112,2]
[420185081,1775760634573,-741.18429184,0.00019112,2]
[420185082,1775760634596,-500.0,0.00019112,2]
[420185083,1775760634605,-485.17946225,0.00019112,2]
[420185084,1775760634614,-500.0,0.00019112,2]
[420185085,1775760634623,-741.18429184,0.00019112,2]
[420185086,1775760634632,-741.18429184,0.00019112,2]
[420185087,1775760634642,-741.18429184,0.00019112,2]
[420185088,1775760634651,-741.18429184,0.00019112,2]
[420185089,1775760634659,-741.18429184,0.00019112,2]
[420185090,1775760634669,-500.0,0.00019112,2]
[420185091,1775760634678,-500.0,0.00019112,2]
[420185092,1775760634687,-741.18429184,0.00019112,2]
[420185093,1775760634696,-741.18429184,0.00019112,2]
[420185094,1775760634705,-741.18429184,0.00019112,2]
[420185095,1775760634714,-500.0,0.00019112,2]
[420185096,1775760634724,-741.18429184,0.00019112,2]
[420185097,1775760634733,-741.18429184,0.00019112,2]
[420185098,1775760634742,-2230.315306,0.00019113,2]
[420185099,1775760634752,-500.0,0.00019173,2]
[420185100,1775760634761,-500.0,0.00019173,2]
[420185101,1775760634770,-500.0,0.00019173,2]
[420185102,1775760634780,-709.97641195,0.00019177,2]
[420185103,1775760634789,-628.494592,0.00019177,18]
[420185104,1775760634798,-628.494592,0.00019177,18]
[420185105,1775760634808,-628.494592,0.00019177,18]
[420185106,1775760634818,-628.494592,0.00019177,18]
[420185107,1775760634827,-628.49459199,0.00019177,18]
[420185108,1775760634836,-160.0,0.00019178,18]
[420185109,1775760634845,-160.0,0.00019178,18]
[420185110,1775760634854,-484.79023693,0.00019178,18]
[420185111,1775760634863,-500.0,0.00019178,18]
[420185112,1775760634872,-500.0,0.00019178,18]
[420185113,1775760634881,-500.0,0.00019178,18]
[420185114,1775760634890,-622.19,0.00019178,18]
[420185115,1775760634900,-380.11,0.00019178,18]
[420185116,1775760634910,-500.0,0.00019178,18]
[420185117,1775760634919,-500.0,0.00019178,14]
[420185118,1775760634929,-500.0,0.00019178,18]
[420185119,1775760634938,-500.0,0.00019178,18]
[420185120,1775760634947,-139.53713106,0.00019178,18]
[420185121,1775760634959,-358.805,0.00019178,18]
[420185170,1775760638902,-500.0,0.00018574,2]
[420185172,1775760638912,-500.0,0.00018574,2]
[420185174,1775760638921,-500.0,0.00018574,2]
[420185176,1775760638931,-500.0,0.00018574,2]
[420185178,1775760638940,-500.0,0.00018574,2]
[420185180,1775760638950,-500.0,0.00018574,2]
[420185182,1775760638959,-500.0,0.00018574,2]
[420185183,1775760638969,-500.0,0.00018574,2]
[420185185,1775760638978,-500.0,0.00018574,2]
[420185187,1775760638987,-500.0,0.00018574,2]
[420185189,1775760638997,-500.0,0.00018574,2]
[420185191,1775760639006,-500.0,0.00018574,2]
[420185193,1775760639016,-500.0,0.00018574,2]
[420185213,1775760639208,-500.0,0.00018574,2]
[420185215,1775760639224,-500.0,0.00018574,2]
[420185217,1775760639233,-500.0,0.00018574,2]
[420185219,1775760639243,-500.0,0.00018574,2]
[420185221,1775760639253,-500.0,0.00018574,2]
[420185223,1775760639286,-352.58428292,0.00018574,2]
[420185225,1775760639301,-500.0,0.00018574,2]
[420185227,1775760639310,-500.0,0.00018574,2]
[420185229,1775760639320,-500.0,0.00018574,2]
[420185231,1775760639329,-500.0,0.00018574,2]
[420185233,1775760639338,-500.0,0.00018574,2]
[420185234,1775760639348,-500.0,0.00018574,2]
[420185236,1775760639357,-500.0,0.00018574,2]
[420185238,1775760639367,-500.0,0.00018574,2]
[420185240,1775760639376,-500.0,0.00018574,2]
[420185242,1775760639386,-290.78984265,0.00018574,2]
[420185244,1775760639396,-500.0,0.00018574,2]
[420185246,1775760639406,-500.0,0.00018574,2]
[420185248,1775760639415,-185.64,0.00019,2]
[420185250,1775760639425,-741.18429184,0.00019112,2]
[420185252,1775760639434,-56.11852253,0.00019178,18]
[420185254,1775760639443,-500.0,0.00019178,18]
[420185256,1775760639453,-500.0,0.00019178,18]
[420185258,1775760639462,-500.0,0.00019178,18]
[420185260,1775760639472,-500.0,0.00019178,18]
[420185262,1775760639482,-1036.89,0.00019178,18]
[420185264,1775760639491,-1769.31,0.00019178,18]
[420185266,1775760639501,-500.0,0.00019178,18]
[420185268,1775760639510,-559.30632444,0.00019178,18]
[420185270,1775760639520,-500.0,0.00019178,18]
[420185272,1775760639529,-500.0,0.00019178,18]
[420185274,1775760639538,-500.0,0.00019178,18]
[420185276,1775760639547,-2344.97,0.00019178,18]
[420185278,1775760639557,-952.98,0.00019178,18]
[420185280,1775760639566,-527.62,0.00019178,18]
[420185282,1775760639575,-3034.55,0.00019178,18]
[420185284,1775760639585,-500.0,0.00019178,18]
[420185286,1775760639594,-500.0,0.00019178,7]
[420185287,1775760639603,-500.0,0.00019178,18]
[420185289,1775760639612,-535.6,0.00019178,18]
[420185290,1775760639621,-500.0,0.00019178,18]
[420185292,1775760639630,-566.39815824,0.00019178,18]
[420185294,1775760639639,-500.0,0.00019178,18]
[420185296,1775760639648,-500.0,0.00019178,18]
[420185298,1775760639658,-555.04255051,0.00019178,18]
[420185299,1775760639667,-500.0,0.00019178,18]
[420185301,1775760639677,-500.0,0.00019178,18]
[420185302,1775760639686,-500.0,0.00019178,18]
[420185303,1775760639695,-937.98,0.00019178,18]
[420185304,1775760639705,-500.0,0.00019178,18]
[420185305,1775760639714,-874.37,0.00019178,18]
[420185306,1775760639724,-500.0,0.00019178,18]
[420185307,1775760639733,-500.0,0.00019178,18]
[420185308,1775760639742,-216.09261163,0.00019178,18]
[420185309,1775760639751,-500.0,0.00019178,18]
[420185310,1775760639760,-1078.37,0.00019178,18]
[420185311,1775760639769,-188.72740253,0.00019178,18]
[420185312,1775760639779,-500.0,0.00019178,18]
[420185313,1775760639789,-500.0,0.00019178,18]
[420185314,1775760639798,-500.0,0.00019178,18]
[420185315,1775760639807,-893.4,0.00019178,18]
[420185316,1775760639817,-500.0,0.00019178,18]
[420185317,1775760639826,-500.0,0.00019178,18]
[420185318,1775760639835,-500.0,0.00019178,18]
[420185319,1775760639844,-500.0,0.00019178,18]
[420185320,1775760639854,-890.42,0.00019178,18]
[420185321,1775760639862,-997.02,0.00019178,18]
[420185322,1775760639872,-500.0,0.00019178,18]
[420185323,1775760639881,-500.0,0.00019178,18]
[420185324,1775760639891,-500.0,0.00019178,18]
[420185326,1775760639900,-500.0,0.00019178,18]
[420185327,1775760639909,-500.0,0.00019178,18]
[420185328,1775760639919,-500.0,0.00019178,18]
[420185330,1775760639928,-500.0,0.00019178,18]
[420185331,1775760639937,-500.0,0.00019178,18]
[420185332,1775760639946,-500.0,0.00019178,18]
[420185334,1775760639956,-655.24,0.00019178,18]
[420185335,1775760639966,-500.0,0.00019178,18]
[420185336,1775760639975,-572.04,0.00019178,18]
[420185338,1775760639984,-1018.53,0.00019178,18]
[420185339,1775760639996,-500.0,0.00019178,18]
[420185341,1775760640024,-500.0,0.00019178,18]
[420185342,1775760640035,-500.0,0.00019178,18]
[420185343,1775760640045,-500.0,0.00019178,18]
[420185345,1775760640054,-500.0,0.00019178,18]
[420185346,1775760640064,-656.36,0.00019178,18]
[420185348,1775760640073,-1139.05,0.00019178,18]
[420185349,1775760640083,-500.0,0.00019178,18]
[420185350,1775760640092,-500.0,0.00019178,18]
[420185352,1775760640101,-500.0,0.00019178,18]
[420185353,1775760640110,-500.0,0.00019178,18]
[420185354,1775760640120,-500.0,0.00019178,18]
[420185356,1775760640129,-500.0,0.00019178,18]
[420185357,1775760640139,-500.0,0.00019178,18]
[420185358,1775760640148,-500.0,0.00019178,18]
[420185360,1775760640158,-969.73,0.00019178,18]
[420185361,1775760640167,-500.0,0.00019178,18]
[420185363,1775760640176,-500.0,0.00019178,10]
[420185364,1775760640184,-500.0,0.00019178,18]
[420185365,1775760640194,-1192.0,0.00019178,18]
[420185367,1775760640204,-500.0,0.00019178,18]
[420185368,1775760640213,-1511.18,0.00019178,18]
[420185370,1775760640223,-982.82,0.00019178,18]
[420185371,1775760640232,-500.0,0.00019178,18]
[420185373,1775760640242,-3431.13,0.00019178,18]
[420185374,1775760640252,-500.0,0.00019178,18]
[420185375,1775760640261,-962.32,0.00019178,18]
[420185377,1775760640271,-787.36,0.00019178,18]
[420185378,1775760640280,-614.76466996,0.00019178,18]
[420185380,1775760640291,-500.0,0.00019178,18]
[420185381,1775760640300,-1000.0,0.00019178,2]
[420185382,1775760640310,-500.0,0.00019178,18]
[420185384,1775760640320,-500.0,0.00019178,18]
[420185385,1775760640329,-451.09762666,0.00019178,18]
[420185387,1775760640345,-544.41237334,0.00019178,18]
[420185388,1775760640354,-500.0,0.00019178,18]
[420185389,1775760640364,-656.45,0.00019178,18]
[420185391,1775760640374,-3276.79,0.00019178,18]
[420185392,1775760640383,-638.52,0.00019178,18]
[420185394,1775760640394,-500.0,0.00019178,18]
[420185395,1775760640403,-231.03794149,0.00019178,18]
[420185396,1775760640412,-585.7,0.00019178,18]
[420185398,1775760640423,-500.0,0.00019178,18]
[420185400,1775760640432,-500.0,0.00019178,18]
[420185402,1775760640442,-1634.12,0.00019178,18]
[420185404,1775760640451,-557.79,0.00019178,18]
[420185406,1775760640460,-500.0,0.00019178,18]
[420185408,1775760640470,-789.78,0.00019178,18]
[420185409,1775760640480,-1807.46,0.00019178,18]
[420185411,1775760640489,-500.0,0.00019178,18]
[420185413,1775760640499,-1397.86,0.00019178,18]
[420185415,1775760640509,-500.0,0.00019178,18]
[420185417,1775760640518,-547.44,0.00019178,18]
[420185418,1775760640527,-541.64982612,0.00019178,18]
[420185419,1775760640537,-500.0,0.00019178,18]
[420185420,1775760640546,-2162.46,0.00019178,18]
[420185421,1775760640557,-500.0,0.00019178,18]
[420185422,1775760640566,-1812.31,0.00019178,18]
[420185423,1775760640575,-500.0,0.00019178,18]
[420185424,1775760640585,-500.0,0.00019178,18]
[420185425,1775760640594,-500.0,0.00019178,18]
[420185426,1775760640603,-500.0,0.00019178,18]
[420185428,1775760640612,-566.05,0.00019178,18]
[420185429,1775760640622,-543.36,0.00019178,18]
[420185430,1775760640638,-500.0,0.00019178,18]
[420185431,1775760640652,-558.93,0.00019178,18]
[420185432,1775760640662,-500.0,0.00019178,18]
[420185433,1775760640672,-3293.6107251,0.00019178,18]
[420185434,1775760640687,-366.3692749,0.00019178,18]
[420185435,1775760640711,-351.6307251,0.00019178,18]
[420185452,1775760644028,-500.0,0.00018574,2]
[420185453,1775760644037,-1234.4792749,0.00019178,18]
[420185454,1775760644047,-500.0,0.00019178,18]
[420185455,1775760644057,-500.0,0.00019178,18]
[420185456,1775760644065,-500.0,0.00019178,18]
[420185457,1775760644075,-1454.52,0.00019178,18]
[420185458,1775760644084,-3241.47,0.00019178,18]
[420185459,1775760644093,-500.0,0.00019178,18]
[420185460,1775760644130,-605.84,0.00019178,18]
[420185461,1775760644139,-500.0,0.00019178,2]
[420185462,1775760644149,-500.0,0.00019178,18]
[420185463,1775760644158,-500.0,0.00019178,18]
[420185464,1775760644166,-500.0,0.00019178,18]
[420185465,1775760644175,-500.0,0.00019178,18]
[420185466,1775760644184,-500.0,0.00019178,18]
[420185467,1775760644192,-500.0,0.00019178,18]
[420185468,1775760644201,-500.0,0.00019178,18]
[420185469,1775760644210,-1571.55,0.00019178,18]
[420185470,1775760644219,-516.4,0.00019178,18]
[420185471,1775760644228,-500.0,0.00019178,18]
[420185472,1775760644237,-520.45,0.00019178,18]
[420185474,1775760644246,-500.0,0.00019178,18]
[420185476,1775760644255,-500.0,0.00019178,18]
[420185478,1775760644263,-500.0,0.00019178,18]
[420185479,1775760644272,-500.0,0.00019178,18]
[420185481,1775760644281,-500.75,0.00019178,18]
[420185482,1775760644290,-419.18156487,0.00019178,18]
[420185483,1775760644298,-500.0,0.00019178,18]
[420185484,1775760644308,-3554.3286,0.00019178,18]
[420185485,1775760644317,-3554.3286,0.00019178,18]
[420185486,1775760644325,-3554.3286,0.00019178,18]
[420185487,1775760644334,-500.0,0.00019178,18]
[420185488,1775760644343,-1417.43,0.00019178,18]
[420185489,1775760644351,-322.6041014,0.00019178,18]
[420185494,1775760646768,-177.3958986,0.00019178,18]
[420185495,1775760646805,-1460.55,0.00019178,18]
[420185496,1775760646815,-1633.15,0.00019178,18]
[420185497,1775760646825,-587.49,0.00019178,18]
[420185498,1775760646834,-500.0,0.00019178,18]
[420185499,1775760646844,-529.59,0.00019178,18]
[420185500,1775760646854,-500.0,0.00019178,18]
[420185501,1775760646863,-500.0,0.00019178,18]
[420185502,1775760646873,-500.0,0.00019178,18]
[420185503,1775760646882,-500.0,0.00019178,18]
[420185504,1775760646891,-500.0,0.00019178,18]
[420185505,1775760646900,-599.33,0.00019178,18]
[420185506,1775760646909,-39.33142433,0.00019178,18]
[420185507,1775760646921,-460.66857567,0.00019178,18]
[420185508,1775760646930,-500.0,0.00019178,18]
[420185509,1775760646939,-121.92586294,0.00019178,18]
[420185822,1775761831688,-209.57495947,0.00013599,2]
[420185823,1775761831697,-1000.0,0.00013699,2]
[420185824,1775761831706,-177.0,0.00015649,2]
[420185825,1775761831716,-300.0,0.00016438,2]
[420185826,1775761831724,-204.0,0.00017649,2]
[420185827,1775761831733,-330.0,0.00017964,2]
[420185828,1775761831742,-351.16261735,0.00018966,2]
[420185829,1775761831756,-1639.35570547,0.00018966,2]
[420185830,1775761831765,-96.52048626,0.00018966,2]
[420186021,1775761838063,-441.16401374,0.00018966,2]
[420186023,1775761838073,-300.0,0.00018975,2]
[420186025,1775761838082,-300.0,0.00018975,2]
[420186027,1775761838092,-300.0,0.00018975,2]
[420186028,1775761838101,-4587.25821569,0.00018976,2]
[420186030,1775761838111,-3287.86190013,0.00018977,2]
[420186032,1775761838120,-1131.43,0.00019,2]
[420186034,1775761838130,-226.28,0.00019,2]
[420186036,1775761838139,-557.5788265,0.00019021,2]
[420186038,1775761838149,-995.16450479,0.00019021,2]
[420186040,1775761838161,-995.16450476,0.00019035,2]
[420186042,1775761838180,-917.37245352,0.0001905,2]
[420186081,1775761840844,-77.79205124,0.0001905,2]
[420186083,1775761840854,-995.16450476,0.00019064,2]
[420186085,1775761840864,-46.38345889,0.00019076,2]
[420186116,1775761843119,-531.82578419,0.00019076,2]
[420186117,1775761843128,-3396.78369053,0.00019077,2]
[420186118,1775761843139,-2943.40244164,0.00019077,2]
[420186119,1775761843178,-1650.95049077,0.00019077,2]
[420186138,1775761913834,202.0,9.001e-05,2]
[420186140,1775762417915,300.0,0.00013706,90]
[420186239,1775763031950,-372.87153523,0.00013699,2]
[420186241,1775763031975,-627.12846477,0.00013699,2]
[420186243,1775763031990,-300.0,0.00016438,2]
[420186245,1775763032000,-177.0,0.00017069,2]
[420186247,1775763032010,-646.32215337,0.00017216,2]
[420186249,1775763032019,-300.0,0.00017897,2]
[420186251,1775763032028,-4930.64992423,0.00017898,2]
[420186254,1775763032039,-4240.55941701,0.00017898,2]
[420186256,1775763032050,-11647.87447436,0.00017898,2]
[420186258,1775763032059,-1609.9046858,0.00017956,2]
[420186260,1775763032068,-330.0,0.00017964,2]
[420186262,1775763032077,-537.6845,0.00018142,2]
[420186264,1775763032086,-4981.22364297,0.00018148,2]
[420186266,1775763032094,-557.5788265,0.00018197,2]
[420186268,1775763032103,-578.20924308,0.00018252,2]
[420186270,1775763032112,-599.60298507,0.00018307,2]
[420186289,1775763032370,-263.4,0.00018355,7]
[420186291,1775763032381,-621.78829552,0.00018362,2]
[420186293,1775763032391,-215.69,0.00018366,7]
[420186295,1775763032400,-192.66,0.00018366,7]
[420186297,1775763032410,-644.79446246,0.00018417,2]
[420186299,1775763032419,-668.65185757,0.00018472,2]
[420186301,1775763032428,-693.3919763,0.00018527,2]
[420186303,1775763032438,-719.04747942,0.00018582,2]
[420186305,1775763032447,-745.65223616,0.00018637,2]
[420186307,1775763032457,-733.1398965,0.00018692,2]
[420186309,1775763032466,-510.56115307,0.0001872,2]
[420186311,1775763032476,-500.0,0.0001872,2]
[420186313,1775763032485,-378.39,0.00018732,7]
[420186315,1775763032494,-400.0,0.00018738,7]
[420186317,1775763032504,-262.19,0.00018738,7]
[420186319,1775763032513,-400.0,0.00018743,7]
[420186321,1775763032523,-400.0,0.00018743,7]
[420186323,1775763032533,-199.03290096,0.00018774,2]
[420186325,1775763032542,-199.03290095,0.0001885,2]
[420186327,1775763032551,-174.0,0.00018862,2]
[420186329,1775763032561,-156.0,0.00018862,2]
[420186331,1775763032570,-192.0,0.00018862,2]
[420186333,1775763032580,-446.0,0.00018862,2]
[420186336,1775763032591,-31218.09334445,0.00018875,2]
[420186367,1775763041447,-500.0,0.00018872,2]
[420186368,1775763041456,-500.0,0.00018872,2]
[420186369,1775763041466,-500.0,0.00018872,2]
[420186370,1775763041475,-500.0,0.00018872,2]
[420186371,1775763041484,-500.0,0.00018872,2]
[420186372,1775763041497,-500.0,0.00018872,2]
[420186373,1775763041520,-500.0,0.00018872,2]
[420186374,1775763041530,-500.0,0.00018872,2]
[420186375,1775763041539,-500.0,0.00018872,2]
[420186376,1775763041548,-500.0,0.00018872,2]
[420186377,1775763041557,-500.0,0.00018872,2]
[420186378,1775763041566,-500.0,0.00018872,2]
[420186379,1775763041576,-500.0,0.00018872,2]
[420186380,1775763041585,-500.0,0.00018872,2]
[420186381,1775763041594,-500.0,0.00018872,2]
[420186382,1775763041604,-500.0,0.00018872,2]
[420186383,1775763041614,-500.0,0.00018872,2]
[420186384,1775763041623,-500.0,0.00018872,2]
[420186385,1775763041632,-500.0,0.00018872,2]
[420186386,1775763041643,-426.17788465,0.00018872,2]
[420186387,1775763041651,-500.0,0.00018872,2]
[420186388,1775763041680,-500.0,0.00018872,2]
[420186389,1775763041689,-500.0,0.00018872,2]
[420186390,1775763041698,-500.0,0.00018872,2]
[420186391,1775763041708,-34662.33517517,0.00018875,2]
[420186392,1775763041719,-1785.00951315,0.00018875,2]
[420186393,1775763041731,-5199.95634752,0.00018875,2]
[420186394,1775763041742,-199475.28408641,0.00018875,2]
[420186395,1775763041751,-10935.3928158,0.00018921,2]
[420186396,1775763041761,-199.03290095,0.00018926,2]
[420186397,1775763041770,-4035.63994916,0.00019,2]
[420186398,1775763041780,-1135.66,0.00019,2]
[420186399,1775763041789,-227.13,0.00019,2]
[420186400,1775763041799,-199.03290095,0.00019002,2]
[420186401,1775763041808,-904.13,0.00019055,2]
[420186402,1775763041819,-204.0,0.00019069,2]
[420186403,1775763041853,-199.03290095,0.00019078,2]
[420186404,1775763041863,-250.0,0.00019123,7]
[420186405,1775763041873,-677.98382869,0.00019177,18]
[420186406,1775763041882,-677.98382868,0.00019177,18]
[420186407,1775763041892,-677.98382868,0.00019177,18]
[420186408,1775763041902,-677.98382868,0.00019177,18]
[420186409,1775763041912,-677.98382868,0.00019177,18]
[420186410,1775763041921,-158.759,0.00019177,2]
[420186411,1775763041932,-160.0,0.00019178,18]
[420186412,1775763041941,-160.0,0.00019178,18]
[420186413,1775763041951,-500.0,0.00019178,18]
[420186414,1775763041960,-500.0,0.00019178,18]
[420186415,1775763041970,-500.0,0.00019178,18]
[420186416,1775763041978,-500.0,0.00019178,18]
[420186417,1775763041988,-500.0,0.00019178,18]
[420186418,1775763041997,-500.0,0.00019178,18]
[420186419,1775763042007,-500.0,0.00019178,18]
[420186420,1775763042016,-500.0,0.00019178,18]
[420186421,1775763042026,-781.54,0.00019178,18]
[420186422,1775763042035,-500.0,0.00019178,18]
[420186423,1775763042046,-500.0,0.00019178,18]
[420186424,1775763042056,-500.0,0.00019178,18]
[420186425,1775763042065,-500.0,0.00019178,18]
[420186426,1775763042075,-505.13,0.00019178,18]
[420186427,1775763042087,-500.0,0.00019178,18]
[420186428,1775763042105,-500.0,0.00019178,18]
[420186429,1775763042120,-500.0,0.00019178,18]
[420186430,1775763042137,-500.0,0.00019178,18]
[420186431,1775763042162,-500.0,0.00019178,18]
[420186432,1775763042174,-803.38,0.00019178,18]
[420186433,1775763042187,-500.0,0.00019178,18]
[420186434,1775763042201,-500.0,0.00019178,18]
[420186435,1775763042213,-500.0,0.00019178,18]
[420186436,1775763042223,-500.0,0.00019178,18]
[420186437,1775763042234,-500.0,0.00019178,18]
[420186438,1775763042247,-500.0,0.00019178,18]
[420186439,1775763042259,-500.0,0.00019178,18]
[420186440,1775763042269,-510.7,0.00019178,18]
[420186441,1775763042279,-852.11,0.00019178,18]
[420186442,1775763042289,-500.0,0.00019178,18]
[420186443,1775763042298,-500.0,0.00019178,18]
[420186444,1775763042307,-500.0,0.00019178,18]
[420186445,1775763042317,-500.0,0.00019178,18]
[420186446,1775763042327,-500.0,0.00019178,18]